[Event "Early-Titled-Tuesday-Blitz-January-16-2024"]
[Site "Chess.com"]
[Date "2024.01.16"]
[Round "8"]
[White "mertfelin"]
[Black "SujanaLohani"]
[Result "1-0"]
[WhiteElo "2224"]
[BlackElo "1992"]
[TimeControl "180+1"]
[EndTime "9:33:56 PST"]
[Termination "mertfelin won on time"]

1. e4 {[%clk 0:02:56.7]} 1... c5 {[%clk 0:02:59.5]} 2. Nf3 {[%clk 0:02:54.5]}
2... Nc6 {[%clk 0:02:39.6]} 3. Bb5 {[%clk 0:02:49.8]} 3... Nd4 {[%clk
0:02:21.4]} 4. Nxd4 {[%clk 0:02:48.9]} 4... cxd4 {[%clk 0:02:21.2]} 5. O-O
{[%clk 0:02:49.8]} 5... g6 {[%clk 0:02:20.8]} 6. d3 {[%clk 0:02:47.3]} 6... Bg7
{[%clk 0:02:21.1]} 7. f4 {[%clk 0:02:41.6]} 7... e6 {[%clk 0:02:17.5]} 8. Nd2
{[%clk 0:02:41.5]} 8... Ne7 {[%clk 0:02:16.5]} 9. Nf3 {[%clk 0:02:41.2]} 9...
O-O {[%clk 0:02:15.7]} 10. Ba4 {[%clk 0:02:40.9]} 10... d5 {[%clk 0:02:15]} 11.
e5 {[%clk 0:02:40.4]} 11... Nf5 {[%clk 0:02:14.1]} 12. Qe2 {[%clk 0:02:37.4]}
12... Qb6 {[%clk 0:02:13.3]} 13. Qf2 {[%clk 0:02:18.8]} 13... Ne3 {[%clk
0:02:12.1]} 14. Re1 {[%clk 0:02:19]} 14... Rd8 {[%clk 0:01:37.5]} 15. Rb1 {[%clk
0:01:42.4]} 15... Bd7 {[%clk 0:01:29.4]} 16. Bxd7 {[%clk 0:01:39.7]} 16... Rxd7
{[%clk 0:01:29.3]} 17. Bxe3 {[%clk 0:01:40.3]} 17... dxe3 {[%clk 0:01:26.4]} 18.
Qxe3 {[%clk 0:01:39.9]} 18... d4 {[%clk 0:01:14.6]} 19. Qe2 {[%clk 0:01:30.9]}
19... Rc8 {[%clk 0:01:14.1]} 20. Rec1 {[%clk 0:01:30.5]} 20... Bh6 {[%clk
0:01:06.2]} 21. g3 {[%clk 0:01:30.5]} 21... Bf8 {[%clk 0:01:06.1]} 22. Nd2
{[%clk 0:01:29.9]} 22... Rd5 {[%clk 0:00:49.6]} 23. Ne4 {[%clk 0:01:22.2]} 23...
Qa5 {[%clk 0:00:40.1]} 24. Nf6+ {[%clk 0:01:11.4]} 24... Kg7 {[%clk 0:00:35.3]}
25. Nxd5 {[%clk 0:01:11.7]} 25... Qxd5 {[%clk 0:00:34]} 26. a3 {[%clk
0:01:11.4]} 26... Bc5 {[%clk 0:00:31.8]} 27. Re1 {[%clk 0:00:54.2]} 27... Bb6
{[%clk 0:00:30.5]} 28. b4 {[%clk 0:00:32.6]} 28... Rc3 {[%clk 0:00:28.7]} 29.
Ra1 {[%clk 0:00:31.1]} 29... Qc6 {[%clk 0:00:27.3]} 30. Rec1 {[%clk 0:00:31.6]}
30... Qa4 {[%clk 0:00:24.1]} 31. Ra2 {[%clk 0:00:10]} 31... Rxa3 {[%clk
0:00:23.4]} 32. Rb2 {[%clk 0:00:10]} 32... Ra1 {[%clk 0:00:17.5]} 33. Qe1 {[%clk
0:00:09.2]} 33... Ra3 {[%clk 0:00:11]} 34. Rcb1 {[%clk 0:00:09.3]} 34... Rc3
{[%clk 0:00:10.5]} 35. Qe2 {[%clk 0:00:07.9]} 35... a6 {[%clk 0:00:09.5]} 36.
Rc1 {[%clk 0:00:08.3]} 36... Ba7 {[%clk 0:00:08.8]} 37. Qe4 {[%clk 0:00:07]}
37... Qb5 {[%clk 0:00:07.3]} 38. Rcb1 {[%clk 0:00:06.9]} 38... Bb6 {[%clk
0:00:07.2]} 39. Kg2 {[%clk 0:00:06.6]} 39... Bc7 {[%clk 0:00:07.2]} 40. h4
{[%clk 0:00:06.8]} 40... Qb6 {[%clk 0:00:05.5]} 41. Qe2 {[%clk 0:00:05.5]} 41...
Qb5 {[%clk 0:00:05.3]} 42. Rh1 {[%clk 0:00:04.2]} 42... h5 {[%clk 0:00:04.7]}
43. Rhb1 {[%clk 0:00:03.8]} 43... Bb6 {[%clk 0:00:03.8]} 44. Qe4 {[%clk
0:00:04.1]} 44... Ba7 {[%clk 0:00:03.8]} 45. Kh3 {[%clk 0:00:04.7]} 45... Bb8
{[%clk 0:00:03.8]} 46. Qg2 {[%clk 0:00:04.5]} 46... Qa4 {[%clk 0:00:03.2]} 47.
Rb3 {[%clk 0:00:04.7]} 47... Qb5 {[%clk 0:00:02.1]} 48. Rxc3 {[%clk 0:00:04.9]}
48... dxc3 {[%clk 0:00:01.9]} 49. Qe4 {[%clk 0:00:05.7]} 49... Ba7 {[%clk
0:00:01.9]} 50. Re1 {[%clk 0:00:06.1]} 50... Qb6 {[%clk 0:00:02.1]} 51. Re2
{[%clk 0:00:05.5]} 51... Qg1 {[%clk 0:00:01.9]} 52. Qg2 {[%clk 0:00:05.4]} 52...
Qd1 {[%clk 0:00:01.4]} 53. Kh2 {[%clk 0:00:03]} 53... Qc1 {[%clk 0:00:01.4]} 54.
Kh3 {[%clk 0:00:02.5]} 54... Qb2 {[%clk 0:00:01.5]} 55. Qxb7 {[%clk 0:00:01.7]}
55... Bd4 {[%clk 0:00:01.3]} 56. Qe4 {[%clk 0:00:01.8]} 56... Qxb4 {[%clk
0:00:01.3]} 57. Re1 {[%clk 0:00:01.3]} 57... a5 {[%clk 0:00:01.6]} 58. Qe2
{[%clk 0:00:01.9]} 58... a4 {[%clk 0:00:01.8]} 59. Ra1 {[%clk 0:00:02.1]} 59...
a3 {[%clk 0:00:01.9]} 60. Qd1 {[%clk 0:00:02]} 60... Qb2 {[%clk 0:00:01.7]} 61.
Qb1 {[%clk 0:00:02.1]} 1-0

[Event "Early-Titled-Tuesday-Blitz-January-16-2024"]
[Site "Chess.com"]
[Date "2024.01.16"]
[Round "8"]
[White "hmatyi07"]
[Black "anasta10"]
[Result "0-1"]
[WhiteElo "2221"]
[BlackElo "2519"]
[TimeControl "180+1"]
[EndTime "9:33:59 PST"]
[Termination "anasta10 won by checkmate"]

1. e4 {[%clk 0:03:00.9]} 1... g6 {[%clk 0:02:49]} 2. d4 {[%clk 0:03:00.7]} 2...
Bg7 {[%clk 0:02:46.2]} 3. Nc3 {[%clk 0:03:01.2]} 3... c6 {[%clk 0:02:44.9]} 4.
Nf3 {[%clk 0:02:58.7]} 4... d6 {[%clk 0:02:43.8]} 5. Be3 {[%clk 0:02:53.8]} 5...
b5 {[%clk 0:02:43.2]} 6. Qd2 {[%clk 0:02:42.5]} 6... Nf6 {[%clk 0:02:39]} 7. Bd3
{[%clk 0:02:13.6]} 7... b4 {[%clk 0:02:38.2]} 8. Ne2 {[%clk 0:02:12]} 8... a5
{[%clk 0:02:38.8]} 9. h4 {[%clk 0:02:03.5]} 9... h5 {[%clk 0:02:38.1]} 10. Ng5
{[%clk 0:02:03.8]} 10... Ng4 {[%clk 0:02:13.3]} 11. Bf4 {[%clk 0:02:00.7]} 11...
e5 {[%clk 0:02:11]} 12. dxe5 {[%clk 0:01:54.1]} 12... Nxe5 {[%clk 0:02:11.9]}
13. O-O-O {[%clk 0:01:50.3]} 13... O-O {[%clk 0:02:04.9]} 14. Bxe5 {[%clk
0:01:47.1]} 14... Bxe5 {[%clk 0:02:04.6]} 15. f4 {[%clk 0:01:47.1]} 15... Bg7
{[%clk 0:02:04.5]} 16. Bc4 {[%clk 0:01:45.1]} 16... d5 {[%clk 0:01:53.1]} 17.
exd5 {[%clk 0:01:40.9]} 17... Qf6 {[%clk 0:01:30.8]} 18. Qd4 {[%clk 0:01:22.2]}
18... Qd6 {[%clk 0:00:43.9]} 19. Qd2 {[%clk 0:01:19.7]} 19... Bg4 {[%clk
0:00:29.9]} 20. Nf3 {[%clk 0:01:12.4]} 20... Bxf3 {[%clk 0:00:19.3]} 21. gxf3
{[%clk 0:01:13.3]} 21... c5 {[%clk 0:00:19.9]} 22. c3 {[%clk 0:00:57.1]} 22...
Nd7 {[%clk 0:00:19.8]} 23. Rhg1 {[%clk 0:00:42.5]} 23... Nb6 {[%clk 0:00:18.8]}
24. Qd3 {[%clk 0:00:41.5]} 24... a4 {[%clk 0:00:10.5]} 25. f5 {[%clk 0:00:40.2]}
25... a3 {[%clk 0:00:11]} 26. b3 {[%clk 0:00:38.2]} 26... Nxc4 {[%clk
0:00:10.9]} 27. Qxc4 {[%clk 0:00:38.1]} 27... bxc3 {[%clk 0:00:11]} 28. Nxc3
{[%clk 0:00:38.1]} 28... Qf6 {[%clk 0:00:07.9]} 29. Rd3 {[%clk 0:00:38.2]} 29...
Rfe8 {[%clk 0:00:07.3]} 30. d6 {[%clk 0:00:36.4]} 30... Kh8 {[%clk 0:00:06]} 31.
d7 {[%clk 0:00:36.7]} 31... Red8 {[%clk 0:00:06]} 32. Rgd1 {[%clk 0:00:37.3]}
32... Ra7 {[%clk 0:00:05.9]} 33. fxg6 {[%clk 0:00:36.7]} 33... fxg6 {[%clk
0:00:06.2]} 34. Qxc5 {[%clk 0:00:35.9]} 34... Raa8 {[%clk 0:00:06.1]} 35. Rd6
{[%clk 0:00:30.7]} 35... Qf4+ {[%clk 0:00:05.9]} 36. Kb1 {[%clk 0:00:28.4]}
36... Qh2 {[%clk 0:00:06]} 37. R6d2 {[%clk 0:00:27.8]} 37... Qf4 {[%clk
0:00:05.4]} 38. Rd3 {[%clk 0:00:25.1]} 38... Qh2 {[%clk 0:00:05.2]} 39. R3d2
{[%clk 0:00:25.6]} 39... Qxh4 {[%clk 0:00:05]} 40. Nd5 {[%clk 0:00:14.1]} 40...
Qg5 {[%clk 0:00:04]} 41. f4 {[%clk 0:00:13.7]} 41... Qf5+ {[%clk 0:00:04.4]} 42.
Qc2 {[%clk 0:00:11.9]} 42... Rxd7 {[%clk 0:00:02.4]} 43. Qxf5 {[%clk 0:00:11.6]}
43... gxf5 {[%clk 0:00:03.3]} 44. Nb6 {[%clk 0:00:11.6]} 44... Rxd2 {[%clk
0:00:04.2]} 45. Rxd2 {[%clk 0:00:12.1]} 45... Rb8 {[%clk 0:00:04.9]} 46. Nd5
{[%clk 0:00:11.6]} 46... Rd8 {[%clk 0:00:05.2]} 47. Kc2 {[%clk 0:00:10.4]} 47...
h4 {[%clk 0:00:05.7]} 48. Ne3 {[%clk 0:00:09.6]} 48... Rc8+ {[%clk 0:00:05.7]}
49. Kd3 {[%clk 0:00:08.4]} 49... h3 {[%clk 0:00:06]} 50. Rh2 {[%clk 0:00:07.6]}
50... Kg8 {[%clk 0:00:05.7]} 51. Rxh3 {[%clk 0:00:08.2]} 51... Rc3+ {[%clk
0:00:06.4]} 52. Ke2 {[%clk 0:00:08.3]} 52... Bd4 {[%clk 0:00:06.4]} 53. Rg3+
{[%clk 0:00:07.7]} 53... Kf8 {[%clk 0:00:06.8]} 54. Nxf5 {[%clk 0:00:07.9]}
54... Rc2+ {[%clk 0:00:06.4]} 55. Kd3 {[%clk 0:00:08]} 55... Rxa2 {[%clk
0:00:06.5]} 56. Kxd4 {[%clk 0:00:08.5]} 56... Rb2 {[%clk 0:00:07.4]} 57. Kc4
{[%clk 0:00:08.8]} 57... a2 {[%clk 0:00:07.7]} 58. Rg1 {[%clk 0:00:06.6]} 58...
Rb1 {[%clk 0:00:08.1]} 59. Rg2 {[%clk 0:00:02.6]} 59... a1=Q {[%clk 0:00:08.2]}
60. Nd6 {[%clk 0:00:03.3]} 60... Rc1+ {[%clk 0:00:08.2]} 61. Kb4 {[%clk
0:00:03.2]} 61... Rd1 {[%clk 0:00:06]} 62. Nc4 {[%clk 0:00:03.3]} 62... Qf6
{[%clk 0:00:05.1]} 63. Re2 {[%clk 0:00:03.1]} 63... Rd7 {[%clk 0:00:05.5]} 64.
Re5 {[%clk 0:00:01.5]} 64... Rb7+ {[%clk 0:00:05.9]} 65. Ka3 {[%clk 0:00:02.2]}
65... Qxf4 {[%clk 0:00:05.8]} 66. Re8+ {[%clk 0:00:02.1]} 66... Kxe8 {[%clk
0:00:05.8]} 67. Na5 {[%clk 0:00:02.4]} 67... Qb4+ {[%clk 0:00:04.9]} 68. Ka2
{[%clk 0:00:02.8]} 68... Qxa5+ {[%clk 0:00:05.8]} 69. Kb2 {[%clk 0:00:03.6]}
69... Qb4 {[%clk 0:00:06.4]} 70. Ka1 {[%clk 0:00:03.8]} 70... Qa3+ {[%clk
0:00:06.7]} 71. Kb1 {[%clk 0:00:04.3]} 71... Qxb3+ {[%clk 0:00:07.4]} 72. Ka1
{[%clk 0:00:04.6]} 72... Qb2# {[%clk 0:00:07.9]} 0-1

[Event "Early-Titled-Tuesday-Blitz-January-16-2024"]
[Site "Chess.com"]
[Date "2024.01.16"]
[Round "8"]
[White "AndresDelgado77"]
[Black "only_strong_moves"]
[Result "0-1"]
[WhiteElo "2384"]
[BlackElo "2537"]
[TimeControl "180+1"]
[EndTime "9:34:00 PST"]
[Termination "only_strong_moves won on time"]

1. e4 {[%clk 0:03:00.9]} 1... a6 {[%clk 0:02:59.7]} 2. d4 {[%clk 0:02:58.9]}
2... g6 {[%clk 0:03:00.2]} 3. a4 {[%clk 0:02:55.6]} 3... Bg7 {[%clk 0:03:00.2]}
4. Nf3 {[%clk 0:02:56]} 4... c5 {[%clk 0:02:58.6]} 5. dxc5 {[%clk 0:02:54.6]}
5... Qa5+ {[%clk 0:02:58.4]} 6. c3 {[%clk 0:02:50.1]} 6... Qxc5 {[%clk
0:02:58.7]} 7. Na3 {[%clk 0:02:49.8]} 7... Qc7 {[%clk 0:02:49]} 8. Nc4 {[%clk
0:02:43.3]} 8... d6 {[%clk 0:02:28.8]} 9. Be3 {[%clk 0:02:38.2]} 9... Nd7 {[%clk
0:02:24.1]} 10. a5 {[%clk 0:02:30]} 10... Rb8 {[%clk 0:02:19.3]} 11. Nb6 {[%clk
0:02:25.8]} 11... Nxb6 {[%clk 0:02:12.2]} 12. Bxb6 {[%clk 0:02:15.8]} 12... Qc6
{[%clk 0:02:10.9]} 13. Bd3 {[%clk 0:02:13.4]} 13... Nf6 {[%clk 0:02:03.9]} 14.
Nd4 {[%clk 0:02:13.4]} 14... Qd7 {[%clk 0:01:57.3]} 15. O-O {[%clk 0:02:07.4]}
15... O-O {[%clk 0:01:55.7]} 16. h3 {[%clk 0:02:02.7]} 16... Nh5 {[%clk
0:01:46.1]} 17. Be2 {[%clk 0:01:50.9]} 17... Nf4 {[%clk 0:01:45.2]} 18. Bg4
{[%clk 0:01:50.9]} 18... Qe8 {[%clk 0:01:34.6]} 19. g3 {[%clk 0:01:33.4]} 19...
Nxh3+ {[%clk 0:01:32]} 20. Kg2 {[%clk 0:01:31.3]} 20... Ng5 {[%clk 0:01:30.8]}
21. Bxc8 {[%clk 0:01:11.3]} 21... Qxc8 {[%clk 0:01:29.2]} 22. Qe2 {[%clk
0:01:11.8]} 22... Qh3+ {[%clk 0:01:11.4]} 23. Kg1 {[%clk 0:01:11.6]} 23... h5
{[%clk 0:01:08.5]} 24. Qe3 {[%clk 0:01:03.7]} 24... Ne6 {[%clk 0:01:00.8]} 25.
Ne2 {[%clk 0:00:59.9]} 25... h4 {[%clk 0:00:54.8]} 26. gxh4 {[%clk 0:00:54.6]}
26... Qxh4 {[%clk 0:00:50.8]} 27. f4 {[%clk 0:00:54.3]} 27... Qg4+ {[%clk
0:00:47]} 28. Kf2 {[%clk 0:00:54]} 28... Bh6 {[%clk 0:00:42.6]} 29. Ke1 {[%clk
0:00:49.4]} 29... Rbc8 {[%clk 0:00:26.6]} 30. Kd2 {[%clk 0:00:43.6]} 30... Nxf4
{[%clk 0:00:22]} 31. Rxf4 {[%clk 0:00:32.4]} 31... Bxf4 {[%clk 0:00:22.5]} 32.
Qxf4 {[%clk 0:00:31.8]} 32... Qxf4+ {[%clk 0:00:22.1]} 33. Nxf4 {[%clk
0:00:32.1]} 33... e6 {[%clk 0:00:20.4]} 34. Ke3 {[%clk 0:00:30.2]} 34... Kg7
{[%clk 0:00:19.9]} 35. Rd1 {[%clk 0:00:29.8]} 35... Rc6 {[%clk 0:00:19.2]} 36.
Ne2 {[%clk 0:00:29]} 36... Rh8 {[%clk 0:00:18.9]} 37. Bd4+ {[%clk 0:00:27.6]}
37... e5 {[%clk 0:00:18.7]} 38. Bb6 {[%clk 0:00:27.5]} 38... Rh3+ {[%clk
0:00:19.3]} 39. Kd2 {[%clk 0:00:26.9]} 39... Kf6 {[%clk 0:00:18.7]} 40. Rf1+
{[%clk 0:00:26.3]} 40... Ke6 {[%clk 0:00:19.2]} 41. Nc1 {[%clk 0:00:22.7]} 41...
Rc4 {[%clk 0:00:18.8]} 42. Re1 {[%clk 0:00:21.2]} 42... Rh2+ {[%clk 0:00:18.1]}
43. Kd3 {[%clk 0:00:19.8]} 43... Rc6 {[%clk 0:00:18.3]} 44. Re2 {[%clk
0:00:18.8]} 44... Rh1 {[%clk 0:00:18.2]} 45. Nb3 {[%clk 0:00:18.3]} 45... f5
{[%clk 0:00:16.7]} 46. exf5+ {[%clk 0:00:15.2]} 46... Kxf5 {[%clk 0:00:16.9]}
47. Rf2+ {[%clk 0:00:14.2]} 47... Ke6 {[%clk 0:00:17.4]} 48. c4 {[%clk
0:00:13.7]} 48... Rh3+ {[%clk 0:00:17.7]} 49. Be3 {[%clk 0:00:11.2]} 49... Rc8
{[%clk 0:00:14]} 50. Nd2 {[%clk 0:00:11]} 50... g5 {[%clk 0:00:11.9]} 51. Ne4
{[%clk 0:00:10.3]} 51... Rg8 {[%clk 0:00:09.9]} 52. Rf6+ {[%clk 0:00:08.7]}
52... Ke7 {[%clk 0:00:10.5]} 53. Rxd6 {[%clk 0:00:08.1]} 53... g4 {[%clk
0:00:11.1]} 54. Rb6 {[%clk 0:00:07.3]} 54... g3 {[%clk 0:00:11.5]} 55. Rxb7+
{[%clk 0:00:07.4]} 55... Ke6 {[%clk 0:00:11.3]} 56. Rb6+ {[%clk 0:00:06.4]}
56... Kd7 {[%clk 0:00:11.1]} 57. Nc5+ {[%clk 0:00:05.9]} 57... Kc8 {[%clk
0:00:09.7]} 58. Rc6+ {[%clk 0:00:05.4]} 58... Kd8 {[%clk 0:00:08.8]} 59. Rd6+
{[%clk 0:00:04]} 59... Ke7 {[%clk 0:00:08.9]} 60. Rd7+ {[%clk 0:00:04.1]} 60...
Kf6 {[%clk 0:00:08.7]} 61. Ne4+ {[%clk 0:00:04.2]} 61... Ke6 {[%clk 0:00:09.1]}
62. Nc5+ {[%clk 0:00:04.4]} 62... Kf5 {[%clk 0:00:09.4]} 63. Rf7+ {[%clk
0:00:03.7]} 63... Kg6 {[%clk 0:00:10.1]} 64. Re7 {[%clk 0:00:02.1]} 64... g2
{[%clk 0:00:10.2]} 65. Re6+ {[%clk 0:00:01.3]} 65... Kf7 {[%clk 0:00:10.4]} 66.
Rxe5 {[%clk 0:00:01.2]} 66... g1=Q {[%clk 0:00:10.5]} 67. Rf5+ {[%clk
0:00:02.1]} 67... Kg6 {[%clk 0:00:10.2]} 68. Rf6+ {[%clk 0:00:01.4]} 68... Kxf6
{[%clk 0:00:10.2]} 69. Ne4+ {[%clk 0:00:02]} 69... Ke7 {[%clk 0:00:10.4]} 0-1

[Event "Early-Titled-Tuesday-Blitz-January-16-2024"]
[Site "Chess.com"]
[Date "2024.01.16"]
[Round "8"]
[White "MatthewG-p4p"]
[Black "Mikasinski"]
[Result "0-1"]
[WhiteElo "2888"]
[BlackElo "2625"]
[TimeControl "180+1"]
[EndTime "9:34:01 PST"]
[Termination "Mikasinski won by resignation"]

1. e4 {[%clk 0:03:00.9]} 1... c5 {[%clk 0:02:56.5]} 2. Nc3 {[%clk 0:02:55.2]}
2... Nc6 {[%clk 0:02:52.3]} 3. Bb5 {[%clk 0:02:54.6]} 3... Nd4 {[%clk
0:02:52.1]} 4. Nf3 {[%clk 0:02:54.7]} 4... a6 {[%clk 0:02:52.1]} 5. Bd3 {[%clk
0:02:54.3]} 5... Nc6 {[%clk 0:02:51.9]} 6. O-O {[%clk 0:02:52.8]} 6... d6 {[%clk
0:02:46.5]} 7. a3 {[%clk 0:02:37]} 7... Nf6 {[%clk 0:02:45.2]} 8. Rb1 {[%clk
0:02:36.7]} 8... g6 {[%clk 0:02:44.1]} 9. b4 {[%clk 0:02:36.7]} 9... Bg7 {[%clk
0:02:41.6]} 10. h3 {[%clk 0:02:36.8]} 10... cxb4 {[%clk 0:02:40.7]} 11. axb4
{[%clk 0:02:36.7]} 11... b5 {[%clk 0:02:40.3]} 12. Re1 {[%clk 0:02:30.7]} 12...
O-O {[%clk 0:02:38.2]} 13. Nd5 {[%clk 0:02:23.1]} 13... e6 {[%clk 0:02:21.2]}
14. Nxf6+ {[%clk 0:02:15.5]} 14... Bxf6 {[%clk 0:02:21.3]} 15. c3 {[%clk
0:02:15.5]} 15... d5 {[%clk 0:02:18]} 16. e5 {[%clk 0:02:04.4]} 16... Bg7 {[%clk
0:02:17.5]} 17. Bc2 {[%clk 0:02:05.1]} 17... Bd7 {[%clk 0:01:41]} 18. d4 {[%clk
0:02:03.9]} 18... Rc8 {[%clk 0:01:40.4]} 19. Nd2 {[%clk 0:01:59]} 19... a5
{[%clk 0:01:39.9]} 20. bxa5 {[%clk 0:01:43]} 20... Nxa5 {[%clk 0:01:38.4]} 21.
Ba3 {[%clk 0:01:39.6]} 21... Rxc3 {[%clk 0:01:28.2]} 22. Bxf8 {[%clk 0:01:38.2]}
22... Bxf8 {[%clk 0:01:25.6]} 23. Re3 {[%clk 0:01:30]} 23... Qc7 {[%clk
0:01:20.9]} 24. Rxc3 {[%clk 0:01:23.4]} 24... Qxc3 {[%clk 0:01:19.4]} 25. Nb3
{[%clk 0:01:24.3]} 25... Nc4 {[%clk 0:01:17.5]} 26. Qd3 {[%clk 0:01:23.7]} 26...
Qxd3 {[%clk 0:01:03.7]} 27. Bxd3 {[%clk 0:01:24.6]} 27... Ba3 {[%clk 0:01:02.3]}
28. Kf1 {[%clk 0:01:02.6]} 28... Kg7 {[%clk 0:01:00.3]} 29. Ke2 {[%clk
0:01:02.5]} 29... b4 {[%clk 0:00:59.6]} 30. Nd2 {[%clk 0:00:55.4]} 30... Nb2
{[%clk 0:00:54.4]} 31. Ba6 {[%clk 0:00:45.8]} 31... Na4 {[%clk 0:00:48.9]} 32.
Kd3 {[%clk 0:00:44.8]} 32... Nc3 {[%clk 0:00:42.5]} 33. Rb3 {[%clk 0:00:45]}
33... Nd1 {[%clk 0:00:38.3]} 34. Rb1 {[%clk 0:00:27.8]} 34... Nc3 {[%clk
0:00:35.7]} 35. Ra1 {[%clk 0:00:26.1]} 35... Na4 {[%clk 0:00:23]} 36. Kc2 {[%clk
0:00:16.9]} 36... Nb6 {[%clk 0:00:15.6]} 37. Nb1 {[%clk 0:00:08.6]} 37... Ba4+
{[%clk 0:00:15.9]} 38. Kd3 {[%clk 0:00:08.8]} 38... Bb2 {[%clk 0:00:14.8]} 39.
Ra2 {[%clk 0:00:09.2]} 39... Bc1 {[%clk 0:00:10.7]} 40. Nd2 {[%clk 0:00:05.8]}
40... b3 {[%clk 0:00:07.1]} 41. Ra1 {[%clk 0:00:06.4]} 41... b2 {[%clk
0:00:07.1]} 42. Rb1 {[%clk 0:00:07.1]} 42... Bd1 {[%clk 0:00:05.9]} 43. Kc3
{[%clk 0:00:06.2]} 43... Na4+ {[%clk 0:00:06.2]} 44. Kd3 {[%clk 0:00:06.6]}
44... Kf8 {[%clk 0:00:05.8]} 45. Bb5 {[%clk 0:00:07.1]} 45... Nb6 {[%clk
0:00:06]} 46. Kc3 {[%clk 0:00:07.5]} 46... Ke7 {[%clk 0:00:05.3]} 47. Nb3 {[%clk
0:00:08]} 47... Bxb3 {[%clk 0:00:04.3]} 48. Kxb3 {[%clk 0:00:08.9]} 48... f6
{[%clk 0:00:03.8]} 49. exf6+ {[%clk 0:00:06.7]} 49... Kxf6 {[%clk 0:00:04.7]}
50. Kc3 {[%clk 0:00:06.7]} 50... e5 {[%clk 0:00:04.9]} 51. Kd3 {[%clk
0:00:05.3]} 51... Nc8 {[%clk 0:00:04.1]} 52. Ba4 {[%clk 0:00:04]} 52... Nd6
{[%clk 0:00:03.9]} 53. Bb3 {[%clk 0:00:04.3]} 53... Ke6 {[%clk 0:00:02.4]} 54.
dxe5 {[%clk 0:00:03.5]} 54... Kxe5 {[%clk 0:00:02.8]} 55. Ba2 {[%clk 0:00:03.4]}
55... Ne4 {[%clk 0:00:01.9]} 56. Kc2 {[%clk 0:00:02.8]} 56... Nxf2 {[%clk
0:00:01.9]} 57. Bb3 {[%clk 0:00:02.8]} 57... Ne4 {[%clk 0:00:02.2]} 58. Ba4
{[%clk 0:00:02.9]} 58... Nc5 {[%clk 0:00:02.6]} 59. Bb5 {[%clk 0:00:03.1]} 59...
d4 {[%clk 0:00:03.2]} 60. Bc4 {[%clk 0:00:03.7]} 60... Ke4 {[%clk 0:00:03.4]}
61. Bg8 {[%clk 0:00:03.6]} 61... h6 {[%clk 0:00:03.4]} 62. Kd1 {[%clk
0:00:04.3]} 62... g5 {[%clk 0:00:03.1]} 63. Bh7+ {[%clk 0:00:05.1]} 63... Ke3
{[%clk 0:00:03.7]} 64. Bg6 {[%clk 0:00:03.5]} 64... Na4 {[%clk 0:00:04.1]} 65.
Kc2 {[%clk 0:00:03.4]} 65... Nc3 {[%clk 0:00:04.5]} 66. Rxc1 {[%clk 0:00:03.9]}
66... bxc1=Q+ {[%clk 0:00:04.5]} 67. Kxc1 {[%clk 0:00:04.8]} 67... Ne2+ {[%clk
0:00:05]} 68. Kd1 {[%clk 0:00:04.9]} 68... Nf4 {[%clk 0:00:05.4]} 69. Be8 {[%clk
0:00:05.1]} 69... Nxg2 {[%clk 0:00:05.9]} 70. Bd7 {[%clk 0:00:06]} 70... Nf4
{[%clk 0:00:06.3]} 71. Bf5 {[%clk 0:00:06.7]} 71... d3 {[%clk 0:00:06.6]} 72.
Bc8 {[%clk 0:00:07.6]} 72... Nd5 {[%clk 0:00:07]} 73. Bg4 {[%clk 0:00:07.7]}
73... Nc3+ {[%clk 0:00:07.5]} 74. Ke1 {[%clk 0:00:08.2]} 74... d2+ {[%clk
0:00:08.2]} 75. Kf1 {[%clk 0:00:09]} 75... d1=Q+ {[%clk 0:00:08.8]} 76. Bxd1
{[%clk 0:00:09.8]} 76... Nxd1 {[%clk 0:00:09.5]} 77. Kg2 {[%clk 0:00:10.7]}
77... Kf4 {[%clk 0:00:09.6]} 78. h4 {[%clk 0:00:11.2]} 78... g4 {[%clk
0:00:09.2]} 0-1